bitfinex/quotes_ETHUSD_20250213
["timestamp","ask_amount","ask_price","bid_price","bid_amount"]
[1739429168128,0.565,2692.1,2691.6,3.71526]
[1739429168339,4.2797,2692.1,2691.4,3.71553]
[1739429168666,0.0075,2691.8,2691.2,3.71568]
[1739429168817,3.72255,2691.8,2691.1,3.71595]
[1739429168998,0.5575,2691.5,2691.0,3.7518]
[1739429169316,0.0075,2691.4,2690.7,0.7842]
[1739429169504,0.55,2691.1,2690.5,7.43338]
[1739429169697,0.565,2691.0,2690.6,3.0]
[1739429170103,0.0075,2690.7,2690.4,0.7842]
[1739429170435,0.0075,2690.6,2690.1,3.7173]
[1739429170840,0.5575,2690.5,2690.0,4.52774]
[1739429171002,0.5575,2690.5,2690.1,3.7173]
[1739429171355,0.0075,2690.4,2690.0,7.52772]
[1739429171503,0.0075,2690.4,2690.1,3.71729]
[1739429171703,3.71632,2690.9,2690.2,3.71706]
[1739429171903,3.71632,2690.9,2690.0,11.65273512]
[1739429171904,0.565,2690.8,2690.0,7.93528512]
[1739429172222,0.5575,2690.8,2690.5,3.71666]
[1739429172420,0.0075,2690.8,2690.3,3.71695]
[1739429172760,0.0075,2690.8,2690.1,3.71726]
[1739429172761,0.0075,2690.5,2690.1,3.71726]
[1739429173062,0.0075,2690.5,2689.8,0.1450862]
[1739429173063,0.565,2690.3,2689.8,0.1450862]
[1739429173264,4.28215,2690.3,2689.8,0.1450862]
[1739429173554,0.565,2690.1,2689.8,0.1450862]
[1739429174045,0.443205,2690.1,2689.8,0.1450862]
[1739429174200,0.015,2690.1,2689.8,0.1450862]
[1739429174612,0.565,2690.3,2689.8,3.8627562]
[1739429174828,0.565,2690.3,2689.8,0.1450862]
[1739429175421,0.565,2690.3,2690.0,3.71733]
[1739429175769,4.28208,2690.3,2689.8,0.1450862]
[1739429175912,0.565,2690.1,2689.8,0.1450862]
[1739429176110,5.03621,2689.9,2689.8,0.1450862]
[1739429176511,5.03621,2689.9,2689.0,4.52693]
[1739429176512,1.3186,2689.2,2688.3,0.8081]
[1739429176710,1.3186,2689.2,2688.8,3.71901]
[1739429176912,1.3111,2689.2,2688.8,3.71902]
[1739429177138,0.8075,2689.8,2689.0,3.71876]
[1739429177325,3.71803,2689.6,2688.5,4.12498512]
[1739429177539,3.7183,2689.4,2688.5,7.84450512]
[1739429177740,0.5575,2688.5,2688.2,0.004]
[1739429177945,4.27732,2688.3,2688.2,0.004]
[1739429178274,1.6237,2688.3,2688.2,0.004]
[1739429178566,0.7965,2688.2,2687.1,0.1500862]
[1739429178932,3.72012,2688.1,2687.4,3.72103]
[1739429179162,0.7965,2688.2,2687.1,0.1500862]
[1739429179359,0.7669,2687.2,2686.0,3.72289]
[1739429179526,0.015,2686.9,2686.2,3.72267]
[1739429179727,0.015,2686.7,2685.7,0.7625]
[1739429179927,0.015,2686.7,2686.2,3.72268]
[1739429180123,0.015,2686.8,2685.4,3.72374]
[1739429180459,0.303,2687.1,2685.3,3.72397]
[1739429180460,0.8064,2686.6,2685.3,3.72397]
[1739429180637,0.55,2686.3,2685.5,3.72368]
[1739429180831,0.55,2686.1,2685.4,3.72384]
[1739429181128,8.25089,2686.6,2685.6,3.72354]
[1739429181340,0.8064,2686.6,2685.2,0.7828]
[1739429181547,0.8064,2686.6,2686.5,3.72231]
[1739429181830,10.75751116,2688.1,2686.3,3.72256]
[1739429181831,1.1109,2687.4,2687.3,3.7212]
[1739429182028,0.8059,2687.4,2687.2,3.72127]
[1739429182379,0.8059,2687.4,2686.7,3.72203]
[1739429182527,0.015,2687.2,2686.3,3.72252]
[1739429182905,3.73704,2686.7,2685.9,3.72312]
[1739429183025,0.565,2686.1,2685.3,3.72393]
[1739429183225,0.565,2686.1,2684.8,0.7824]
[1739429183427,0.565,2686.1,2685.5,3.72361]
[1739429183640,0.565,2686.1,2685.7,3.72342]
[1739429183839,0.5575,2686.1,2685.2,3.72411]
[1739429184021,1.258334,2686.6,2685.6,0.7588]
[1739429184226,0.8075,2686.6,2686.5,3.72231]
[1739429184454,0.308,2687.2,2686.5,3.72231]
[1739429184455,0.8075,2687.1,2686.5,3.72231]
[1739429184667,0.565,2687.0,2685.6,3.7588]
[1739429184928,0.565,2687.0,2686.4,3.72232]
[1739429185173,0.565,2687.0,2686.1,3.72279]
[1739429185324,0.0075,2686.7,2686.1,3.72279]
[1739429185523,0.55,2686.6,2686.3,3.72255]
[1739429185724,0.8075,2687.1,2685.7,2.03722725]
[1739429185972,0.8075,2687.1,2686.8,3.72188]
[1739429186226,0.308,2687.4,2686.9,3.72172]
[1739429186454,0.015,2687.3,2686.7,3.72203]
[1739429186699,0.015,2687.3,2686.1,3.72285]
[1739429186700,0.8075,2687.2,2686.1,3.72285]
[1739429186827,0.565,2686.8,2686.3,3.72251]
[1739429187022,0.565,2686.8,2686.1,3.72284]
[1739429187239,0.565,2686.6,2686.3,3.72248]
[1739429187539,0.0075,2686.9,2686.1,3.72286]
[1739429187742,0.565,2686.8,2685.9,3.72309]
[1739429187977,1.3575,2686.5,2685.9,3.72309]
[1739429188271,0.0075,2686.2,2685.8,3.72325]
[1739429188474,0.0075,2686.1,2685.8,3.72325]
[1739429188795,0.436995,2686.2,2685.3,0.85966212]
[1739429188796,0.8075,2686.5,2686.3,3.72259]
[1739429188996,0.8075,2686.5,2686.1,3.72286]
[1739429189277,0.565,2686.4,2686.0,3.723]
[1739429189640,0.565,2686.4,2685.6,3.72356]
[1739429189945,0.565,2686.4,2685.1,4.87251116]
[1739429190131,0.015,2686.1,2685.1,3.93570912]
[1739429190331,0.015,2686.3,2685.7,3.72332]
[1739429190635,0.015,2686.3,2685.2,6.72411]
[1739429190789,0.0075,2686.3,2686.2,3.72273]
[1739429190959,0.8075,2686.5,2686.2,3.72273]
[1739429191159,0.8075,2686.5,2686.4,3.72245]
[1739429191797,0.7832,2687.0,2685.9,3.72303]
[1739429191949,0.015,2686.8,2686.5,3.7223]
[1739429192149,0.015,2686.8,2686.3,3.72255]
[1739429192590,0.015,2686.8,2686.1,3.72282]
[1739429192773,0.565,2686.5,2685.9,3.72304]
[1739429193117,0.015,2686.2,2685.9,3.72304]
[1739429193314,0.0075,2686.0,2685.6,3.72352]
[1739429193465,0.0075,2686.0,2685.7,3.72335]
[1739429193814,0.0075,2686.0,2684.9,0.8075]
[1739429193815,0.0075,2685.8,2685.5,3.72367]
[1739429193947,0.5575,2685.9,2685.5,3.72367]
[1739429194148,0.0075,2685.9,2685.0,3.72431]
[1739429194345,0.0075,2686.0,2684.9,4.53198]
[1739429194666,0.0075,2685.7,2685.6,3.72356]
[1739429194870,1.0863,2686.3,2686.0,3.723]
[1739429195268,0.565,2686.2,2685.8,3.72325]
[1739429195470,0.565,2686.2,2686.0,3.72299]
[1739429195665,0.565,2686.2,2686.1,3.72286]
[1739429196010,0.8075,2686.8,2686.1,3.72286]
[1739429196300,0.8075,2686.8,2685.7,0.7631]
[1739429196301,0.8075,2686.8,2686.7,3.72203]
[1739429196653,0.815,2686.8,2686.7,3.72203]
[1739429196966,0.66752,2686.9,2686.5,3.72221]
[1739429197166,0.66752,2686.9,2686.5,3.67221]
[1739429197362,0.55,2686.8,2686.5,3.67221]
[1739429197571,0.55,2686.8,2686.7,3.72201]
[1739429198497,0.55,2686.8,2686.5,3.67221]
[1739429198727,0.55,2686.8,2686.6,3.72208]
[1739429199056,0.55,2686.8,2686.5,3.67221]
[1739429199057,0.55,2686.8,2686.7,3.72203]
[1739429200552,0.55,2686.8,2686.5,3.67221]
[1739429200761,0.7589,2686.7,2685.4,3.72384]
[1739429200895,0.7589,2686.7,2686.1,3.72276]
[1739429201094,4.48095,2686.7,2686.1,3.72276]
[1739429201350,0.7589,2686.7,2686.2,3.7227]
[1739429201555,0.7589,2686.7,2686.3,3.7225]
[1739429201697,0.7589,2686.7,2686.2,3.72262]
[1739429201913,0.565,2686.6,2686.3,3.72254]
[1739429202355,0.565,2686.6,2686.1,3.72278]
[1739429202659,0.565,2686.6,2686.1,3.72286]
[1739429202831,0.565,2686.6,2686.3,3.72256]
[1739429203172,0.565,2686.6,2686.5,3.72231]
[1739429203495,0.5575,2686.6,2686.5,3.72231]
[1739429203696,0.7764,2687.2,2686.8,3.72176]
[1739429203917,0.7764,2687.2,2686.7,3.72198]
[1739429204121,0.015,2687.0,2686.3,0.774]
[1739429204302,0.015,2687.0,2686.8,3.72181]
[1739429204540,0.67584,2687.0,2686.9,3.72176]
[1739429204858,0.67584,2687.0,2686.8,3.72189]
[1739429205017,0.7764,2687.2,2686.8,3.72189]
[1739429205213,5.8995,2687.1,2687.0,3.72162]
[1739429205433,5.892,2687.1,2687.0,3.72162]
[1739429205633,5.892,2687.1,2686.9,3.72176]
[1739429206068,0.015,2687.0,2686.5,3.72219]
[1739429206264,0.565,2687.0,2686.5,3.72219]
[1739429206429,0.0075,2686.7,2686.3,3.72253]
[1739429206781,0.0075,2686.7,2685.2,3.72411]
[1739429206782,3.7227,2686.3,2685.7,4.53211]
[1739429206985,0.565,2686.4,2685.9,3.72306]
[1739429207141,0.8075,2686.6,2686.1,3.72284]
[1739429207345,0.452963,2686.5,2686.1,3.72284]
[1739429207550,0.565,2686.4,2685.4,4.53259]
[1739429207773,0.565,2686.4,2686.3,3.72259]
[1739429207927,0.8075,2686.6,2686.5,3.72231]
[1739429208134,0.8075,2687.0,2686.9,3.72176]
[1739429208334,1.34421041,2687.0,2686.9,3.72176]
[1739429208533,6.55884,2687.1,2686.9,3.72176]
[1739429208973,6.56634,2687.1,2687.0,3.72162]
[1739429209138,5.892,2687.1,2687.0,3.72162]
[1739429210159,5.892,2687.1,2686.1,3.72286]
[1739429210352,3.72171,2687.0,2686.2,3.72273]
[1739429210553,0.961371,2686.9,2686.5,3.7223]
[1739429210815,1.511371,2686.9,2686.8,3.72189]
[1739429211160,5.892,2687.1,2687.0,3.72162]
[1739429212179,5.892,2687.1,2686.9,3.72175]
[1739429212517,0.5575,2687.0,2686.7,3.72195]
[1739429212658,1.365,2687.0,2686.7,3.72196]
[1739429213322,0.0075,2686.9,2686.5,3.72228]
[1739429213610,0.0075,2686.8,2686.6,3.72213]
[1739429213774,0.0075,2686.8,2686.7,3.72203]
[1739429214739,0.8075,2687.0,2686.7,3.72202]
[1739429214862,0.0075,2686.8,2686.7,3.72202]
[1739429215365,0.0075,2686.8,2686.5,3.72227]
[1739429215576,0.0075,2686.8,2686.6,3.72216]
[1739429215758,0.0075,2686.8,2686.7,3.72203]
[1739429216181,0.0075,2686.8,2686.5,3.72222]
[1739429216476,0.5575,2686.5,2686.0,3.72295]
[1739429216676,0.0075,2686.2,2685.8,3.72316]
[1739429216901,0.015,2686.2,2685.9,3.72301]
[1739429217112,0.015,2686.2,2685.8,3.72316]
[1739429217529,0.015,2686.2,2686.0,3.72287]
[1739429217685,0.015,2686.2,2686.1,3.72286]
[1739429218735,0.428727,2686.4,2685.9,3.72307]
[1739429218874,3.72256,2686.4,2685.5,4.48502]
[1739429219074,0.0075,2686.0,2685.2,0.7926]
[1739429219315,0.565,2686.0,2685.3,3.72387]
[1739429219785,0.565,2686.0,2685.5,3.72361]
[1739429220021,0.565,2686.0,2685.3,3.7239]
[1739429220022,0.55,2685.8,2685.3,3.7239]
[1739429220248,0.55,2685.6,2685.3,3.72387]
[1739429220396,0.55,2685.4,2684.8,3.72458]
[1739429220604,3.72451,2685.0,2684.4,0.1450862]
[1739429220914,3.72414,2685.2,2684.5,3.72495]
[1739429221085,0.55,2685.1,2684.9,3.72452]
[1739429221285,0.7532,2685.3,2685.1,3.72419]
[1739429221601,0.7963,2685.8,2685.3,3.72386]
[1739429221797,0.7963,2685.8,2685.2,3.72411]
[1739429221998,0.7963,2685.8,2685.0,3.72432]
[1739429221999,0.7963,2685.8,2685.7,3.72342]
[1739429222142,6.7025,2686.9,2685.7,0.744698]
[1739429222360,6.7025,2686.9,2686.8,3.72189]
[1739429222817,5.895,2686.9,2686.8,3.72189]
[1739429223418,5.07e-06,2687.0,2686.9,4.49706]
[1739429223564,5.07e-06,2687.0,2686.0,6.82299]
[1739429223565,5.07e-06,2687.0,2686.2,4.49789]
[1739429223901,0.0075,2687.0,2686.6,3.72217]
[1739429224206,0.0075,2687.0,2686.2,1.225089]
[1739429224207,0.565,2687.0,2686.2,4.947809]
[1739429224515,0.55,2686.8,2685.6,4.51342]
[1739429224714,0.0075,2686.1,2685.5,3.7236]
[1739429224921,3.7231,2686.0,2685.3,3.72396]
[1739429225215,0.0075,2685.7,2685.1,3.72421]
[1739429225525,3.72385,2685.4,2684.6,4.48047]
[1739429225678,4.28898,2685.3,2684.7,3.72467]
[1739429225856,0.565,2685.3,2684.7,3.72467]
[1739429226221,0.8015,2685.2,2684.4,0.1450862]
[1739429226362,3.72436,2685.1,2684.4,3.8702962]
[1739429226710,0.565,2685.0,2684.4,0.1450862]
[1739429226862,0.015,2684.9,2684.4,0.1450862]
[1739429227057,0.015,2684.9,2684.5,3.72498]
[1739429227258,0.5575,2685.3,2684.5,0.7599]
[1739429227459,3.72445,2685.0,2684.4,0.1450862]
[1739429227754,0.824026,2685.0,2684.5,3.72508]
[1739429227959,0.265,2685.0,2684.6,3.72491]
[1739429228155,0.7917,2685.2,2684.6,3.72486]
[1739429228394,0.0075,2685.0,2684.4,0.1450862]
[1739429228564,0.565,2685.0,2684.4,3.8702662]
[1739429228763,0.7917,2685.2,2684.6,3.72484]
[1739429229023,0.7917,2685.2,2684.6,3.72494]
[1739429229318,0.5575,2685.1,2684.5,3.72502]
[1739429229525,0.0075,2685.0,2684.4,0.1450862]
[1739429229668,3.72477,2684.8,2684.4,0.1450862]
[1739429229870,0.5575,2684.8,2684.4,0.1450862]
[1739429230243,4.53788,2684.5,2684.4,0.1450862]
[1739429230376,5.09538,2684.5,2684.4,6.2e-06]
[1739429230723,0.7952,2683.5,2682.8,3.72743]
[1739429230934,0.7952,2683.5,2682.8,0.0372734]
[1739429231084,0.7952,2684.0,2683.9,3.72592]
[1739429231434,0.7952,2684.6,2684.1,3.7255]
[1739429231569,0.7952,2684.6,2683.5,4.87251116]
[1739429231766,62.530706,2685.0,2684.5,3.72508]
[1739429231967,62.530706,2685.0,2684.6,3.72494]
[1739429232172,0.015,2684.9,2684.2,3.72548]
[1739429232383,3.72511,2684.5,2683.8,3.72603]
[1739429232600,0.565,2684.1,2683.6,1.29595112]
[1739429232773,0.015,2684.1,2683.6,3.72633]
[1739429232972,0.0075,2684.1,2683.5,3.72647]
[1739429233171,0.015,2684.1,2683.4,3.0]
[1739429233403,0.7799,2684.2,2683.4,3.0]
[1739429233404,0.7799,2684.2,2683.6,3.72624]
[1739429233604,4.5055,2684.2,2683.4,3.7266]
[1739429233806,1.23045,2684.2,2683.6,3.72621]
[1739429234122,0.7799,2684.2,2683.6,3.72621]
[1739429234291,0.565,2684.1,2683.4,3.72655]
[1739429234829,0.565,2684.1,2683.2,3.72689]
[1739429235121,0.015,2683.8,2683.0,3.72712]
[1739429235304,0.55,2683.6,2682.5,0.005]
[1739429235525,3.72709,2683.1,2682.5,0.005]
[1739429235668,4.83481,2683.5,2682.8,3.72741]
[1739429235882,5.898,2684.1,2682.7,7.87251116]
[1739429235883,0.8075,2683.8,2682.7,7.87251116]
[1739429236083,0.8075,2683.8,2683.6,3.72625]
[1739429236405,0.8075,2683.8,2682.7,7.87251116]
[1739429236406,5.898,2684.1,2683.7,3.72618]
[1739429236602,5.898,2684.1,2683.6,3.72632]
[1739429236802,5.898,2684.1,2683.7,3.72619]
[1739429237133,0.565,2684.0,2683.4,3.72651]
[1739429237335,0.55,2684.0,2682.7,4.87251116]
[1739429237484,0.55,2684.0,2682.5,0.37829]
[1739429237485,0.565,2683.4,2682.5,0.37829]
[1739429237684,3.73466,2683.1,2682.5,0.005]
[1739429237887,3.72716,2683.1,2682.5,3.73281]
[1739429238286,0.565,2683.0,2682.5,0.005]
[1739429238536,4.29217,2683.0,2682.5,0.005]
[1739429238740,0.015,2683.0,2682.5,3.73274]
[1739429238940,0.015,2683.0,2682.5,0.005]
[1739429239235,0.0075,2682.9,2682.5,0.005]
[1739429239439,3.73486,2682.9,2682.5,0.005]
[1739429239588,4.27772,2682.6,2682.5,0.005]
[1739429239788,4.49273,2682.8,2682.5,0.005]
[1739429240405,3.72772,2682.6,2682.5,0.005]
[1739429240808,4.49265,2682.8,2682.5,0.005]
[1739429241012,3.72772,2682.6,2682.5,0.005]
[1739429241187,4.728512,2682.6,2682.5,0.005]
[1739429241587,0.450792,2682.6,2682.5,0.005]
[1739429241793,3.72772,2682.6,2682.5,0.005]
[1739429242007,4.49268,2682.8,2682.5,0.005]
[1739429242241,4.48832,2682.6,2682.5,0.005]
[1739429243153,0.565,2681.4,2679.7,0.0272]
[1739429243494,0.565,2681.4,2679.7,0.51717112]
[1739429243495,3.73062,2680.6,2679.7,0.51717112]
[1739429243666,4.28727,2681.2,2679.9,3.73136]
[1739429243825,3.73038,2680.7,2679.9,3.73136]
[1739429244022,0.0075,2680.9,2679.7,0.0272]
[1739429244222,3.7308,2680.4,2679.7,3.75887]
[1739429244471,0.7998,2680.8,2679.7,0.0272]
[1739429244630,1.253543,2680.8,2679.8,0.48997112]
[1739429244959,4.53013,2680.8,2680.0,3.73123]
[1739429245163,0.7998,2680.8,2680.0,3.73123]
[1739429245310,0.73838404,2681.5,2679.8,0.48997112]
[1739429245311,4.49157,2680.7,2679.8,0.48997112]
[1739429245508,3.73069,2680.5,2679.8,3.73149]
[1739429245755,0.015,2680.5,2679.9,3.73146]
[1739429245982,3.74568,2680.5,2679.7,3.75892]
[1739429246149,0.7611,2680.7,2679.7,0.0272]
[1739429246816,0.7611,2680.7,2679.8,3.73162]
[1739429247015,0.7611,2680.7,2680.1,3.73119]
[1739429247292,4.49147,2680.7,2680.0,3.73133]
[1739429247459,4.49147,2680.7,2679.8,3.73162]
[1739429247670,4.49147,2680.7,2679.7,3.75894]
[1739429247671,0.565,2680.2,2679.7,3.75894]
[1739429247828,0.015,2680.2,2679.7,0.0272]
[1739429248180,0.55,2680.6,2679.7,0.0272]
[1739429248321,0.504143,2680.6,2679.7,3.75883]
[1739429248678,0.015,2680.6,2680.1,3.7311]
[1739429249024,0.7611,2680.7,2680.6,3.7305]
[1739429249213,1.108,2681.1,2680.6,3.7305]
[1739429249416,1.108,2681.1,2680.0,4.87251116]
[1739429249645,0.784,2681.1,2681.0,3.72995]
[1739429249847,5.9,2681.3,2681.2,3.72967]
[1739429250028,0.8075,2682.6,2680.8,4.87251116]
[1739429250234,1.1325,2682.6,2682.3,3.7281]
[1739429250430,1.1325,2682.6,2682.2,3.72826]
[1739429250749,1.1325,2682.6,2681.2,5.64051116]
[1739429250957,1.1325,2682.6,2681.9,3.72869]
[1739429251196,0.8075,2682.6,2681.4,3.72939]
[1739429251402,0.8075,2682.6,2682.5,3.72786]
[1739429251597,0.8075,2682.6,2682.1,3.72835]
[1739429251798,0.8075,2682.6,2682.3,3.72804]
[1739429252185,0.8075,2682.6,2682.1,3.7284]
[1739429252410,0.8075,2682.6,2681.2,9.37014116]
[1739429252411,4.53522,2682.6,2681.9,3.72859]
[1739429252623,0.565,2682.4,2681.5,3.72924]
[1739429252789,0.0075,2682.1,2681.5,3.72924]
[1739429253119,0.0075,2682.1,2680.4,4.87251116]
[1739429253120,0.015,2681.9,2680.4,4.87251116]
[1739429253323,0.7815,2681.2,2680.0,3.73134]
[1739429253481,0.7815,2681.2,2681.0,3.72994]
[1739429253678,0.7815,2681.2,2680.0,3.0]
[1739429253889,0.2,2682.6,2681.4,3.72937]
[1739429253890,0.328,2681.6,2681.4,3.72937]
[1739429254091,0.328,2681.6,2681.3,3.72951]
[1739429254424,0.015,2681.5,2680.8,3.73022]
[1739429254573,0.015,2681.5,2681.0,3.72988]
[1739429254792,0.7965,2681.3,2680.4,3.73078]
[1739429255143,0.452602,2681.2,2680.1,1.06807112]
[1739429255342,5.905,2681.6,2681.3,3.72942]
[1739429255756,5.905,2681.6,2681.5,3.72925]
[1739429256100,5.905,2681.6,2681.3,3.72942]
[1739429256450,0.015,2681.5,2680.9,3.73002]
[1739429256656,4.709171,2681.5,2680.9,3.73002]
[1739429256818,3.72964,2681.3,2680.7,3.73033]
[1739429257150,3.72964,2681.3,2680.5,3.73061]
[1739429257654,3.72964,2681.3,2680.6,3.73047]
[1739429257852,3.72964,2681.3,2680.7,3.73036]
[1739429257853,0.015,2681.3,2680.7,3.73036]
[1739429258012,0.769,2681.4,2680.4,0.8166]
[1739429258217,1.293911,2681.5,2681.1,3.72968]
[1739429258422,0.015,2681.4,2680.7,3.73034]
[1739429258645,3.72954,2681.3,2680.6,3.73049]
[1739429258842,3.72954,2681.3,2680.7,3.73027]
[1739429259084,0.374454,2681.2,2680.5,3.73064]
[1739429259379,4.104144,2681.2,2680.5,3.73064]
[1739429259547,3.72991,2681.1,2680.4,3.73078]
[1739429259750,0.374454,2681.2,2680.5,3.73055]
[1739429259947,0.374454,2681.2,2680.8,3.73013]
[1739429260150,1.292911,2681.5,2680.9,3.72998]
[1739429260350,0.328,2681.5,2681.2,3.72956]
[1739429260831,5.905,2681.6,2681.2,3.72956]
[1739429261039,5.905,2681.6,2681.3,3.72952]
[1739429261253,5.905,2681.6,2681.4,3.72929]
[1739429261456,5.905,2681.6,2681.5,3.72925]
[1739429261839,5.905,2681.6,2681.3,3.72939]
[1739429262752,5.905,2681.6,2681.5,3.72925]
[1739429264283,5.905,2681.6,2681.5,4.475117]
[1739429264782,5.905,2681.6,2681.5,3.72925]
[1739429265487,5.905,2681.6,2681.2,0.8245]
[1739429265653,5.905,2681.6,2681.5,3.72925]
[1739429266439,0.00744935,2682.3,2681.9,3.72867]
[1739429266641,0.00744935,2682.3,2681.7,3.72889]
[1739429266965,0.00744935,2682.3,2681.2,3.8245]
[1739429267167,0.38100129,2682.3,2681.7,3.72884]
[1739429267352,3.72837,2682.2,2681.5,3.72914]
[1739429267555,0.8075,2682.1,2681.9,3.72856]
[1739429267758,0.00744935,2682.3,2681.9,3.72856]
[1739429267977,0.00744935,2682.3,2682.2,3.72828]
[1739429268161,0.00744935,2682.3,2682.1,7.45674]
[1739429268332,0.00744935,2682.3,2681.5,4.87251116]
[1739429268333,0.00744935,2682.3,2681.9,3.7286]
[1739429268537,0.00744935,2682.3,2682.1,3.72833]
[1739429268743,0.00744935,2682.3,2682.2,3.72828]
[1739429269091,0.00744935,2682.3,2681.5,4.87251116]
[1739429269382,0.00744935,2682.3,2681.3,3.72945]
[1739429269684,0.7834,2682.2,2681.2,0.8245]
[1739429270181,0.00744935,2682.3,2681.5,4.87251116]
[1739429270394,0.00744935,2682.3,2681.2,0.8245]
[1739429270600,3.72885,2681.8,2681.2,0.8245]
[1739429270898,3.72897,2681.7,2681.2,0.8245]
[1739429271108,3.72953,2681.3,2681.2,0.8245]
[1739429271241,0.8075,2681.9,2680.9,0.7754]
[1739429271437,3.72984,2681.1,2680.4,0.7754]
[1739429271641,3.72984,2681.1,2680.4,1.71327412]
[1739429271948,3.72997,2681.0,2680.4,1.71327412]
[1739429272258,3.73038,2680.7,2680.0,0.7754]
[1739429272493,3.73038,2680.7,2680.0,4.50666]
[1739429272696,3.73009,2680.9,2680.0,0.7754]
[1739429273010,0.8075,2681.2,2680.0,0.7754]
[1739429273011,4.5373,2681.2,2680.0,0.7754]
[1739429273178,0.8075,2681.2,2680.0,4.50666]
[1739429273382,3.72986,2681.1,2680.4,3.7307]
[1739429273997,4.53727,2681.2,2680.4,3.73072]
[1739429274425,3.73004,2681.0,2680.3,3.73088]
[1739429274719,7.4601,2681.0,2680.2,3.73099]
[1739429274860,0.8075,2681.2,2680.1,0.93791712]
[1739429274861,3.73031,2680.8,2680.1,0.93791712]
[1739429275376,3.73004,2681.0,2680.3,3.73091]
[1739429275573,3.73033,2680.8,2680.1,4.66900712]
[1739429275903,3.73033,2680.8,2680.1,0.93791712]
[1739429276067,3.73033,2680.8,2680.2,3.73103]
[1739429276494,0.453754,2681.0,2680.4,3.73071]
[1739429277552,0.8075,2681.2,2680.6,7.46079]
[1739429277690,0.8075,2681.2,2680.6,3.73038]
[1739429277883,3.72962,2681.3,2680.6,7.4608]
[1739429278135,7.45899,2681.4,2680.7,3.73028]
[1739429278342,7.0048,2681.6,2680.5,3.73051]
[1739429278643,1.073381,2681.5,2680.8,3.73014]
[1739429278954,5.905,2681.6,2680.7,5.66161116]
[1739429279240,5.905,2681.6,2681.3,0.7891]
[1739429279742,3.7295,2681.4,2680.8,3.73019]
[1739429279890,3.72973,2681.2,2680.7,4.87251116]
[1739429280091,3.72973,2681.2,2680.6,4.49612]
[1739429280342,4.475647,2681.2,2680.6,0.7657]
[1739429280549,3.72999,2681.0,2680.4,4.52709]
[1739429280746,3.73044,2680.7,2680.4,0.7964]
[1739429281085,3.73025,2680.8,2680.4,0.7964]
[1739429281305,0.745917,2681.2,2680.4,0.7964]
[1739429281504,3.72978,2681.2,2680.4,8.25783]
[1739429281803,3.73699,2681.4,2680.7,3.73036]
[1739429282120,3.72974,2681.2,2680.7,7.4607]
[1739429282300,3.72946,2681.4,2680.4,0.7964]
[1739429282496,10.43173,2681.6,2680.5,0.56689112]
[1739429282754,10.43173,2681.6,2680.6,3.73043]
[1739429282956,6.7026,2681.6,2680.4,0.7964]
[1739429283160,6.7026,2681.6,2680.8,3.73014]
[1739429283372,6.7026,2681.6,2680.6,3.73046]
[1739429283668,3.72963,2681.3,2680.4,4.52706]
[1739429283956,0.372963,2681.2,2680.9,3.73008]
[1739429284165,3.72933,2681.5,2680.9,3.73008]
[1739429284343,5.905,2681.6,2681.3,3.7294]
[1739429285072,3.72884,2681.8,2681.2,0.8049]
[1739429285273,3.72884,2681.8,2681.3,3.7295]
[1739429285439,3.72911,2681.7,2681.1,3.72974]
[1739429285638,3.72911,2681.7,2681.1,3.72973]
[1739429285840,0.822967,2681.8,2681.1,3.72973]
[1739429286088,0.822967,2681.8,2681.1,3.72969]
[1739429286320,4.551867,2681.8,2681.2,3.72966]
[1739429286513,4.2614067,2681.7,2681.0,3.72994]
[1739429286796,3.72928,2681.5,2680.6,0.7665]
[1739429286947,3.72928,2681.5,2680.9,7.45996]
[1739429287153,0.5324067,2681.7,2681.2,3.72959]
[1739429287500,0.5324067,2681.7,2680.7,3.73036]
[1739429287501,0.5324067,2681.7,2681.4,3.72937]
[1739429287683,4.50091,2681.9,2681.3,3.72944]
[1739429288135,4.50091,2681.9,2681.3,3.72942]
[1739429288336,0.8075,2682.2,2681.4,0.0372929]
[1739429288537,0.00744935,2682.3,2682.0,3.72847]
[1739429288788,0.49404129,2682.3,2682.1,3.72836]
[1739429289014,0.00744935,2682.3,2682.1,7.45672]
[1739429289222,0.00744935,2682.3,2682.1,3.72836]
[1739429289379,0.00744935,2682.3,2682.2,3.72828]
[1739429289578,0.00744935,2682.3,2682.1,3.72836]
[1739429289831,0.00744935,2682.3,2682.2,3.72828]
[1739429290485,0.00744935,2682.3,2682.2,7.88883896]
[1739429291014,3.72837,2682.2,2681.6,8.67605896]
[1739429291361,0.37358194,2682.1,2681.6,4.94705896]
[1739429291486,3.73566935,2682.3,2681.7,3.72889]
[1739429292001,3.72829,2682.2,2681.5,3.72915]
[1739429292190,3.73566935,2682.3,2681.5,3.72915]
[1739429292191,3.73566935,2682.3,2681.7,3.72896]
[1739429292390,0.00744935,2682.3,2681.7,3.72896]
[1739429292693,3.7283,2682.2,2681.6,3.72908]
[1739429292913,0.37357494,2682.1,2681.8,3.7288]
[1739429293222,0.00744935,2682.3,2681.8,3.72875]
[1739429293516,0.00744935,2682.3,2682.1,3.72833]
[1739429293723,0.00744935,2682.3,2681.3,0.7957]
[1739429293920,3.73563935,2682.3,2681.5,3.72923]